{"text_format":"1","workbook":"xlsx","n_sheets":9,"sheets":["DADOS BÁSICOS","MEMÓRIA","RESUMO","RESUMO FIOTEC","TABELA DOA","COMPLEXIDADE","BASE COMPLEXIDADE","RISCOS","OUTROS"],"not_rendered":{"charts":0,"images":1,"macros":1,"external_links":0,"defined_names":133,"comments":0,"pivot_tables":0},"unopened":[],"bounds":{"document_bytes":16777216,"sheet_cells":100000,"rows_first":2000,"rows_last":500,"rows_between":2000,"halvings":0,"cell_chars":16384,"cell_head_chars":4096},"cells_cut":0,"cells_raw":0,"read":"whole","date_system":"1900"}

{"sheet":"DADOS BÁSICOS","index":0,"n_rows":67,"n_cols":13,"rows_kept":67,"cut":false,"hidden":false,"merged":[[21,0,21,9],[6,0,7,8],[10,1,10,12],[11,1,11,2],[9,0,9,12],[16,1,16,12]]}
[]
[]
[]
[]
[]
[]
[{"$f":"CONCATENATE(\"Memória de cálculos para arranjo contratual do item \",MODELOPLANILHA)","v":"Memória de cálculos para arranjo contratual do item 9"}]
[]
["DADOS BÁSICOS DO PROJETO"]
["PREENCHIMENTO DO COORDENADOR DO PROJETO"]
["NOME DO PROJETO:"]
["VIGÊNCIA (MESES):",null,null,null,{"$f":"MAX(B12,1)","v":1}]
[]
[null,null,"ENSINO",null,null,null,"EXTENSÃO",null,"DESENVOLVIMENTO INSTITUCIONAL"]
["NATUREZA DO PROJETO:",null,"PESQUISA",null,null,null,"ESTÍMULO À INOVAÇÃO",null,"DESENVOLVIMENTO CIENTÍFICO E TECNOLÓGICO"]
[]
["FONTE DE RECURSO:"]
["QUANTIDADE DE COORDENADORES DE SUBPROJETOS:"]
["EDITAL FIOCRUZ (PROGRAMA)?",null,"SIM",{"$f":"IF(DB_EDITALFIOCRUZ_SIM<>\"\",\"\",\"X\")","v":"X"},"NÃO"]
["QUANTIDADE DE PARCELAS DE DESEMBOLSO:"]
[]
["PREENCHIMENTO DA FIOTEC",null,null,null,null,null,null,null,null,null,"Modelo da Planilha",9]
[]
["CARACTERÍSTICAS"]
["CATEGORIA:","X","NACIONAL",null,"INTERNACIONAL"]
["TIPO DE FINANCIADOR:",null,"PÚBLICO","X","PRIVADO",null,"ECONOMIA MISTA"]
["AGENTE FINANCIADOR:",null,"FIOCRUZ",null,"FINEP",null,"BNDES",null,"OPAS",null,"PETROBRAS","X","OUTROS"]
["RECEITAS"]
["PROJETO DE ARRECADAÇÃO (VENDA DE LIVROS):",null,"SIM",{"$f":"IF(DB_PROJETODEARRECADACAO_SIM<>\"\",\"\",\"X\")","v":"X"},"NÃO"]
["PROJETO DE ARRECADAÇÃO (SERVIÇOS TÉCNICOS ESPECIALIZADOS):",null,"SIM","X","NÃO"]
["PROJETO DE ARRECADAÇÃO (PRODUÇÃO DE INSUMOS PARA A SAÚDE):","X","SIM",null,"NÃO"]
["FONTE PROVENIENTE DE CONVÊNIO:",null,"SIM",{"$f":"IF(DB_FONTEPROVENIENTEDECONVENIO_SIM<>\"\",\"\",\"X\")","v":"X"},"NÃO"]
[]
["QUANTIDADE DE AGENTES FINANCIADORES"]
["TOTAL:",1]
["QUE EXIGEM DOCUMENTAÇÃO COMPROBATÓRIA DA DOA:"]
["QUE EXIGEM AUTORIZAÇÃO PRÉVIA PARA REMANEJAMENTO:"]
["QUE EXIGEM COMPROVAÇÃO DE CONTRAPARTIDA FINANCEIRA E NÃO FINANCEIRA:"]
["COM NEGOCIAÇÃO DE GARANTIA CONTRATUAL:"]
["COM MODELOS PRÓPRIOS DE APRESENTAÇÃO DE PROPOSTA:"]
["COM PARTICIPAÇÃO DIRETA DA FIOTEC NA (RE)NEGOCIAÇÃO DO PROJETO:"]
[]
["CARACTERÍSTICAS DE AQUISIÇÃO"]
["LEI 8666/90:",null,"SIM",{"$f":"IF(DB_8666_SIM<>\"\",\"\",\"X\")","v":"X"},"NÃO"]
["DECRETO 8241/10:","X","SIM",{"$f":"IF(DB_8241_SIM<>\"\",\"\",\"X\")","v":""},"NÃO"]
["QUANTIDADE DE CARTÕES PESQUISA:"]
["QUANTIDADE DE LINHAS TELEFÔNICAS:"]
[]
["OPERAÇÕES"]
["SISTEMA ESPECÍFICO DE AGENTE FINANCIADOR:",null,"SIM",{"$f":"IF(DB_SISTEMAESPECIFICO_SIM<>\"\",\"\",\"X\")","v":"X"},"NÃO"]
["QUANTIDADE DE LOCAIS COM EQUIPE EXECUTORA FORA DO RJ E DF:"]
["CONTROLES PARALELOS (EX: LOA/TED NO MESMO PROJETO)",null,"SIM",{"$f":"IF(DB_CONTROLESPARALELOS_SIM<>\"\",\"\",\"X\")","v":"X"},"NÃO"]
["QUANTIDADE DE PROCESSOS SELETIVOS PARA CONTRATAÇÃO DE PESSOAS:"]
[]
["INICIAÇÃO"]
["DOCUMENTAÇÃO SUPLEMENTAR PARA HABILITAÇÃO:",null,"SIM",{"$f":"IF(DB_DOCUMENTACAOSUPLEMENTAR_SIM<>\"\",\"\",\"X\")","v":"X"},"NÃO"]
["PROJETO DE EDITAL:",null,"SIM",{"$f":"IF(DB_PROJETOEDITAL_SIM<>\"\",\"\",\"X\")","v":"X"},"NÃO"]
["CONHECIMENTOS TÉCNICOS ESPECÍFICOS DA FIOTEC:",null,"SIM",{"$f":"IF(DB_CONHECIMENTOTECNICOFIOTEC_SIM<>\"\",\"\",\"X\")","v":"X"},"NÃO"]
["QUANTIDADE DE ÓRGÃOS REGULADORES A SER SUBMETIDO O PROJETO:"]
["QUANTIDADE DE INSTÂNCIAS DE APROVAÇÃO:"]
[]
["PRESTAÇÃO DE CONTAS"]
["PARCELA REEMBOLSO:",null,"SIM",{"$f":"IF(DB_PARCELAREEMBOLSO_SIM<>\"\",\"\",\"X\")","v":"X"},"NÃO"]
["PRESTAÇÃO DE CONTAS SEM FORMULÁRIO DEFINIDO:",null,"SIM",{"$f":"IF(DB_PRESTACAODECONTASSEMFORMULARIO_SIM<>\"\",\"\",\"X\")","v":"X"},"NÃO"]
["PRESTAÇÃO DE CONTAS DIFERENCIADA:",null,"SIM",{"$f":"IF(DB_PRESTACAODECONTASDIFERENCIADA_SIM<>\"\",\"\",\"X\")","v":"X"},"NÃO"]
["PRESTAÇÃO DE CONTAS COM ENVIO DE DOCUMENTAÇÃO COMPROBATÓRIA:",null,"SIM",{"$f":"IF(DB_PRESTACAODECONTASENVIODOCUMENTACAO_SIM<>\"\",\"\",\"X\")","v":"X"},"NÃO"]
["PRESTAÇÃO DE CONTAS DECRETO 7.423/2010:","X","SIM",{"$f":"IF(DB_PRESTACAOCONTAS7423_SIM<>\"\",\"\",\"X\")","v":""},"NÃO"]

{"sheet":"MEMÓRIA","index":1,"n_rows":111,"n_cols":9,"rows_kept":111,"cut":false,"hidden":false,"merged":[[105,3,105,6],[73,3,73,5],[92,3,92,5],[110,3,110,8],[74,3,74,5],[97,3,97,5],[109,3,109,8],[107,3,107,7],[96,3,96,5],[93,3,93,5],[94,3,94,5],[91,3,91,8],[88,3,88,8],[89,3,89,6],[98,3,98,5],[95,3,95,5],[23,3,23,8],[24,3,24,5],[25,3,25,5],[27,3,27,5],[28,3,28,5],[10,4,10,5],[51,3,51,7],[57,3,57,5],[60,3,60,8],[69,3,69,5],[66,3,66,5],[61,3,61,5],[62,3,62,5],[63,3,63,5],[64,3,64,5],[65,3,65,5],[43,3,43,8],[19,4,19,5],[30,3,30,5],[39,3,39,5],[49,3,49,5],[47,9,52,9],[106,3,106,6],[99,3,99,7],[101,3,101,7],[102,3,102,7],[68,3,68,7],[76,3,76,7],[78,3,78,8],[104,3,104,7],[103,3,103,6],[67,3,67,5],[75,3,75,5],[70,3,70,5],[71,3,71,5],[72,3,72,5],[56,3,56,5],[0,0,1,9],[2,0,2,9],[3,3,3,8],[4,3,4,8],[21,3,21,7],[15,4,15,5],[5,3,5,5],[6,4,6,5],[7,4,7,5],[8,4,8,5],[13,3,13,5],[14,4,14,5],[16,4,16,5],[17,4,17,5],[4,9,6,9],[9,4,9,5],[11,4,11,5],[20,4,20,5],[31,3,31,5],[40,3,40,5],[50,3,50,5],[12,3,12,7],[18,4,18,5],[38,3,38,5],[26,3,26,5],[36,3,36,5],[41,3,41,7],[32,3,32,7],[29,3,29,5],[34,3,34,5],[35,3,35,5],[37,3,37,5],[58,3,58,7],[44,3,44,5],[45,3,45,5],[47,3,47,5],[48,3,48,5],[52,3,52,5],[46,3,46,5],[53,3,53,5],[54,3,54,5],[55,3,55,5]]}
[{"$f":"CONCATENATE(\"Memória de cálculos para arranjo contratual do item \",MODELOPLANILHA)","v":"Memória de cálculos para arranjo contratual do item 9"}]
[]
["Obs:As despesas apresentadas devem estar relacionadas às atividades do Projeto "]
[null,null,null,{"$f":"NomeDoProjeto","v":0}]
[null,null,null,"Passagens"]
[null,null,null,"Passagens Nacionais",null,null,"Quantidade","Valor unitário","Valor total"]
[null,null,null,null,null,null,null,null,{"$f":"H7*G7","v":0}]
[null,null,null,null,null,null,null,null,{"$f":"H8*G8","v":0}]
[null,null,null,null,null,null,null,null,{"$f":"H9*G9","v":0}]
[null,null,null,null,null,null,null,null,0]
[null,null,null,null,null,null,null,null,0]
[null,null,null,null,null,null,null,null,0]
[null,null,null,null,null,null,null,null,{"$f":"SUBTOTAL(9,INDIRECT(\"i\" & (ROW(I6)+1) & \":i\" & (ROW(I13)-1)))","v":0}]
[null,null,null,"Passagens Internacionais",null,null,"Quantidade","Valor unitário","Valor total"]
[null,null,null,null,null,null,null,null,{"$f":"H15*G15","v":0}]
[null,null,null,null,null,null,null,null,{"$f":"H16*G16","v":0}]
[null,null,null,null,null,null,null,null,{"$f":"H17*G17","v":0}]
[null,null,null,null,null,null,null,null,{"$f":"H18*G18","v":0}]
[null,null,null,null,null,null,null,null,0]
[null,null,null,null,null,null,null,null,0]
[null,null,null,null,null,null,null,null,0]
[null,null,null,"Deve-se considerar, ainda, a taxa ADU (referente às despesas aeroportuárias, de embarque, etc. cobradas pelas empresas aéreas na medida da confirmação do voo, mediante fechamento da proposta) de R$ 40,00 em orçamento abaixo de R$ 400,00 e de 10% sobre o orçamento total para os outros casos.",null,null,null,null,{"$f":"SUBTOTAL(9,INDIRECT(\"i\" & (ROW(I14)+1) & \":i\" & (ROW(I22)-1)))","v":0}]
[]
[null,null,null,"Diárias"]
[null,null,null,"Diárias Nacionais\nDescrição",null,null,"Quantidade","Valor unitário","Valor Total"]
[null,null,null,null,null,null,null,null,{"$f":"H26*G26","v":0}]
[null,null,null,null,null,null,null,null,{"$f":"H27*G27","v":0}]
[null,null,null,null,null,null,null,null,{"$f":"H28*G28","v":0}]
[null,null,null,null,null,null,null,null,0]
[null,null,null,null,null,null,null,null,0]
[null,null,null,null,null,null,null,null,0]
[null,null,null,null,null,null,null,null,0]
[null,null,null,null,null,null,null,null,{"$f":"SUBTOTAL(9,INDIRECT(\"i\" & (ROW(I25)+1) & \":i\" & (ROW(I33)-1)))","v":0}]
[]
[null,null,null,"Diárias Internacionais\nDescrição",null,null,"Quantidade","Valor unitário","Valor Total"]
[null,null,null,null,null,null,null,null,{"$f":"H36*G36","v":0}]
[null,null,null,null,null,null,null,null,{"$f":"H37*G37","v":0}]
[null,null,null,null,null,null,null,null,{"$f":"H38*G38","v":0}]
[null,null,null,null,null,null,null,null,0]
[null,null,null,null,null,null,null,null,0]
[null,null,null,null,null,null,null,null,0]
[null,null,null,null,null,null,null,null,{"$f":"SUBTOTAL(9,INDIRECT(\"i\" & (ROW(I35)+1) & \":i\" & (ROW(I42)-1)))","v":0}]
[]
[null,null,null,"Material de Consumo"]
[null,null,null,"Produto Nacional",null,null,"Quantidade","Valor unitário","Valor total"]
[null,null,null,null,null,null,null,null,{"$f":"H46*G46","v":0}]
[null,null,null,null,null,null,null,null,{"$f":"H47*G47","v":0}]
[null,null,null,null,null,null,null,null,{"$f":"H48*G48","v":0}]
[null,null,null,null,null,null,null,null,{"$f":"H49*G49","v":0}]
[null,null,null,null,null,null,null,null,0]
[null,null,null,null,null,null,null,null,0]
[null,null,null,"Nas aquisições de material de consumo, material permanente e equipamento adquiridos fora do Rio de Janeiro incidirá  o DIFAL - Diferencial de alíquota de ICMS –entre Estados (até 15%).",null,null,null,null,{"$f":"SUBTOTAL(9,INDIRECT(\"i\" & (ROW(I45)+1) & \":i\" & (ROW(I52)-1)))","v":0}]
[null,null,null,"Produto Importado",null,null,"Quantidade","Valor unitário","Valor total"]
[null,null,null,null,null,null,null,null,0]
[null,null,null,null,null,null,null,null,0]
[null,null,null,null,null,null,null,null,0]
[null,null,null,null,null,null,null,null,0]
[null,null,null,null,null,null,null,null,0]
[null,null,null,"Os custos de importação (deslocamento, armazenagem...), dependendo do item, podem variar de 20% a 50% do valor do material a ser importado. ",null,null,null,null,{"$f":"SUBTOTAL(9,INDIRECT(\"i\" & (ROW(I53)+1) & \":i\" & (ROW(I59)-1)))","v":0}]
[]
[null,null,null,"Material Permanente"]
[null,null,null,"Produto Nacional",null,null,"Quantidade","Valor unitário","Valor total"]
[null,null,null,null,null,null,null,null,{"$f":"H63*G63","v":0}]
[null,null,null,null,null,null,null,null,{"$f":"H64*G64","v":0}]
[null,null,null,null,null,null,null,null,0]
[null,null,null,null,null,null,null,null,0]
[null,null,null,null,null,null,null,null,0]
[null,null,null,null,null,null,null,null,0]
[null,null,null,"· Nas aquisições de material permanente e equipamento adquiridos fora do Rio de Janeiro incidirá  o DIFAL - Diferencial de alíquota de ICMS –entre Estados (até 15%);\n· Em projetos FIOCRUZ apenas com aprovação da Unidade.",null,null,null,null,{"$f":"SUBTOTAL(9,INDIRECT(\"i\" & (ROW(I62)+1) & \":i\" & (ROW(I69)-1)))","v":0}]
[null,null,null,"Produto Importado",null,null,"Quantidade","Valor unitário","Valor total"]
[null,null,null,null,null,null,null,null,{"$f":"H71*G71","v":0}]
[null,null,null,null,null,null,null,null,{"$f":"H72*G72","v":0}]
[null,null,null,null,null,null,null,null,0]
[null,null,null,null,null,null,null,null,0]
[null,null,null,null,null,null,null,null,0]
[null,null,null,null,null,null,null,null,0]
[null,null,null,"Os custos de importação (deslocamento, armazenagem...), dependendo do item, podem variar de 20% a 50% do valor do material a ser importado. ",null,null,null,null,{"$f":"SUBTOTAL(9,INDIRECT(\"i\" & (ROW(I70)+1) & \":i\" & (ROW(I77)-1)))","v":0}]
[]
[null,null,null,"Pessoa Física"]
[null,null,null,"Descrição","Modalidade","Quantidade de Profissionais","Meses de trabalho","Valor unitário","Valor total"]
[null,null,null,null,null,null,null,null,{"$f":"F81*H81*G81","v":0}]
[null,null,null,null,null,null,null,null,{"$f":"F82*H82*G82","v":0}]
[null,null,null,null,null,null,null,null,0]
[null,null,null,null,null,null,null,null,0]
[null,null,null,null,null,null,null,null,0]
[null,null,null,null,null,null,null,null,0]
[null,null,null,null,null,null,null,null,0]
[]
[null,null,null,"· Para Celetista e estagiário- preencher formulário \"estimativa de contratação de pessoal\" para levantamento de Custos diretos e Indiretos;\n· Para Autônomo-informar valor bruto para cálculos de descontos do empregado (20%) mais IR, se houver, etc.."]
[null,null,null,null,null,null,null,null,{"$f":"SUBTOTAL(9,INDIRECT(\"i\" & (ROW(I80)+1) & \":i\" & (ROW(I90)-1)))+H90","v":0}]
[]
[null,null,null,"Pessoa Jurídica"]
[null,null,null,"Serviço",null,null,"Quantidade","Valor unitário","Valor total"]
[null,null,null,null,null,null,null,null,{"$f":"H94*G94","v":0}]
[null,null,null,null,null,null,null,null,{"$f":"H95*G95","v":0}]
[null,null,null,null,null,null,null,null,0]
[null,null,null,null,null,null,null,null,0]
[null,null,null,null,null,null,null,null,0]
[null,null,null,null,null,null,null,null,0]
[null,null,null,null,null,null,null,null,{"$f":"SUBTOTAL(9,INDIRECT(\"i\" & (ROW(I93)+1) & \":i\" & (ROW(I100)-1)))","v":0}]
[]
[null,null,null,"Custo de Implementação",null,null,null,null,{"$f":"ROUND(SUBTOTAL(9,I7:I101),2)","v":0}]
[null,null,null,"Custo de Implementação Anual",null,null,null,null,{"$f":"ROUND(CIA,2)","v":0}]
[null,null,null,"Despesa Operacional e Administrativa (DOA)*",null,null,null,{"$f":"Carteira","v":""},{"$f":"ROUND(CIP*DOA,2)+ROUND(DOA_Complexidade,2)+IF(OutrosLançamentos=0,0,ROUND(OutrosLançamentos,2))","v":0}]
[null,null,null,{"$f":"IF(OR(I105=0,I105=\"\"),\"\",IF(I105>0,\"Acréscimos\",\"Descontos\"))","v":""},null,null,null,null,{"$f":"IF(OutrosLançamentos=0,\"\",ROUND(OutrosLançamentos,2))","v":""}]
[null,null,null,"FUNDO DE INOVAÇÃO",null,null,null,0,{"$f":"VALORTOTALPROJETO*PFINOVACAO","v":0}]
[null,null,null,"ISS ",null,null,null,0,{"$f":"ROUND(I108*PISS,2)","v":0}]
[null,null,null,"Valor Total do Projeto",null,null,null,null,{"$f":"ROUND((CIP+ValorDOA)/(1-PISS-PFINOVACAO),2)","v":0}]
[]
[null,null,null,"Obs1: Poderá haver incidencia de impostos sobre remessas ao exterior (IOF, IR), independente da natureza da despesa.\n*DOA- Despesa Operacional e Administrativa (DOA) a ser validada com a Fiotec."]
[null,null,null,"Os valores aqui calculados poderão sofrer alterações após a validação do setor de Iniciação."]

{"sheet":"RESUMO","index":2,"n_rows":67,"n_cols":5,"rows_kept":67,"cut":false,"hidden":true,"merged":[[58,0,58,3],[13,1,14,3],[15,1,17,5],[18,1,21,5],[1,1,1,6],[2,1,2,2],[5,1,5,6],[3,1,4,4],[9,1,10,3],[11,1,12,3]]}
["RESUMO"]
["NOME DO PROJETO:",{"$f":"NomeDoProjeto","v":0}]
["VIGÊNCIA (MESES):",{"$f":"Vigencia","v":1}]
["NATUREZA DO PROJETO:",{"$f":"quadro(CONCATENATE(tflat(\"ENSINO\",DB_ENSINO),tflat(\"PESQUISA\",DB_PESQUISA),tflat(\"EXTENSÃO\",DB_EXTENSAO),tflat(\"DESENVOLVIMENTO INSTITUCIONAL\",DB_DESENVOLVIMENTOINSTITUCIONAL),tflat(\"DESENVOLVIMENTO CIENTÍFICO\",DB_DESENVOLVIMENTOCIENTIFICO),tflat(\"ESTÍMULO À INOVAÇÃO\",DB_ESTIMULOAINOVACAO)),\"|\")","v":""}]
[]
["FONTE DE RECURSO:",{"$f":"FONTE_DE_RECURSO","v":0}]
["QUANTIDADE DE COORDENADORES DE SUBPROJETOS:",{"$f":"DB_QTDCOORDENADORESSUBPROJETOS","v":0}]
["EDITAL FIOCRUZ (PROGRAMA)?",{"$f":"IF(DB_EDITALFIOCRUZ_SIM<>\"\",\"SIM\",\"NÃO\")","v":"NÃO"}]
["QUANTIDADE DE PARCELAS DE DESEMBOLSO:",{"$f":"DB_QTDPARCELASDESEMBOLSO","v":0}]
["CATEGORIA:",{"$f":"quadro(CONCATENATE(tflat(\"NACIONAL\",DB_NACIONAL),tflat(\"INTERNACIONAL\",DB_INTERNACIONAL)),\"|\")","v":"NACIONAL\r\n\r\n"}]
[]
["TIPO DE FINANCIADOR:",{"$f":"quadro(CONCATENATE(tflat(\"PÚBLICO\",DB_PUBLICO),tflat(\"PRIVADO\",DB_PRIVADO),tflat(\"ECONOMIA MISTA\",DB_ECONOMIAMISTA)),\"|\")","v":"PRIVADO\r\n\r\n"}]
[]
["AGENTE FINANCIADOR:",{"$f":"quadro(CONCATENATE(tflat(\"FIOCRUZ\",DB_FIOCRUZ),tflat(\"FINEP\",DB_FINEP),tflat(\"OPAS\",DB_OPAS),tflat(\"PETROBRAS\",DB_PETROBRAS),tflat(\"OUTROS\",DB_OUTROS)),\"|\")","v":"OUTROS\r\n\r\n"}]
[]
["OUTRAS CARACTERÍSTICAS DO PROJETO:",{"$f":"quadro(CONCATENATE(tflat(\"VENDA DE LIVROS\",DB_PROJETODEARRECADACAO_SIM),tflat(\"SERVIÇOS TÉCNICOS ESPECIALIZADOS\",DB_SERVICOSTECNICOSESPECIALIZADOS_SIM),tflat(\"PRODUÇÃO DE INSUMOS\",DB_PRODUCAODEINSUMOS_SIM),tflat(\"FONTE PROVENIENTE DE CONVÊNIO\",DB_FONTEPROVENIENTEDECONVENIO_SIM),TFLAT1(\"AGENTE FINANCIADOR EXIGE DOCUMENTAÇÃO COMPROBATÓRIA DA DOA\",DB_QTDAGENTESDOCUMENTACAOCUSTOOPERACIONAL,\"AGENTES FINANCIADORES EXIGEM DOCUMENTAÇÃO COMPROBATÓRIA DA DOA\"),TFLAT1(\"AGENTE FINANCIADOR EXIGE AUTORIZAÇÃO PRÉVIA PARA REMANEJAMENTO\",DB_QTDAGENTESAUTORIZACAOREMANEJAMENTO,\"AGENTES FINANCIADORES EXIGEM AUTORIZAÇÃO PRÉVIA PARA REMANEJAMENTO\"),TFLAT1(\"AGENTE FINANCIADOR EXIGE COMPROVAÇÃO DE CONTRAPARTIDA FINANCEIRA E NÃO FINANCEIRA\",DB_QTDAGENTESCONTRAPARTIDA,\"AGENTES FINANCIADORES EXIGEM COMPROVAÇÃO DE CONTRAPARTIDA FINANCEIRA E NÃO FINANCEIRA\"),TFLAT1(\"AGENTE FINANCIADOR COM NEGOCIAÇÃO DE GARANTIA CONTRATUAL\",DB_QTDAGENTEGARANTIACONTRATUAL,\"AGENTES FINANCIADORES COM NEGOCIAÇÃO DE GARANTIA CONTRATUAL\"),TFLAT1(\"AGENTE FINANCIADOR COM MODELO PRÓPRIO DE APRESENTAÇÃO DE PROPOSTA\",DB_QTDAGENTEMODELOPROPRIOPROPOSTA,\"AGENTES FINANCIADORES COM MODELOS PRÓPRIOS DE APRESENTAÇÃO DE PROPOSTA\"),TFLAT1(\"AGENTE FINANCIADOR COM PARTICIPAÇÃO DIRETA DA FIOTEC NA (RE)NEGOCIAÇÃO DO PROJETO\",DB_QTDAGENTENEGOCIACAOFIOTEC,\"AGENTES FINANCIADORES COM PARTICIPAÇÃO DIRETA DA FIOTEC NA (RE)NEGOCIAÇÃO DO PROJETO\"),tflat(\"AQUISIÇÕES PELA LEI 8666/90\",DB_8666_SIM),tflat(\"AQUISIÇÕES PELO DECRETO 8241/10\",DB_8241_SIM),TFLAT1(\"CARTÃO PESQUISA\",DB_QTDCARTAOPESQUISA,\"CARTÕES PESQUISA\"),TFLAT1(\"LINHA TELEFÔNICA\",DB_QTDLINHATELEFONICA,\"LINHAS TELEFÔNICAS\"),tflat(\"AGENTE FINANCIADOR COM SISTEMA ESPECÍFICO\",DB_SISTEMAESPECIFICO_SIM),TFLAT1(\"EQUIPE EXECUTORA FORA DO RJ/DF\",DB_QTDEQUIPESFORARJDF,\"EQUIPES EXECUTORAS FORA DO RJ/DF\"),tflat(\"CONTROLES PARALELOS\",DB_CONTROLESPARALELOS_SIM),TFLAT1(\"PROCESSO SELETIVO\",DB_QTDPROCESSOSSELETIVOS,\"PROCESSOS SELETIVOS\")),\"|\")","v":"PRODUÇÃO DE INSUMOS\r\nAQUISIÇÕES PELO DECRETO 8241/10\r\n\r\n"}]
[]
[]
[null,{"$f":"quadro(CONCATENATE(tflat(\"DOCUMENTAÇÃO SUPLEMENTAR PARA HABILITAÇÃO\",DB_DOCUMENTACAOSUPLEMENTAR_SIM),tflat(\"PROJETO DE EDITAL\",DB_PROJETOEDITAL_SIM),tflat(\"CONHECIMENTOS TÉCNICOS ESPECÍFICOS DA FIOTEC\",DB_CONHECIMENTOTECNICOFIOTEC_SIM),TFLAT1(\"ÓRGÃO REGULADOR PARA SUBMISSÃO DO PROJETO\",DB_QTDORGAOREGULADOR,\"ÓRGÃOS REGULADORES PARA SUBMISSÃO DO PROJETO\"),TFLAT1(\"INSTÂNCIA DE APROVAÇÃO\",DB_QTDINSTACIAAPROVACAO,\"INSTÂNCIAS DE APROVAÇÃO\"),tflat(\"PARCELA REEMBOLSO\",DB_PARCELAREEMBOLSO_SIM),tflat(\"PRESTAÇÃO DE CONTAS SEM FORMULÁRIO DEFINIDO\",DB_PRESTACAODECONTASSEMFORMULARIO_SIM),tflat(\"PRESTAÇÃO DE CONTAS DIFERENCIADA\",DB_PRESTACAODECONTASDIFERENCIADA_SIM),tflat(\"PRESTAÇÃO DE CONTAS COM ENVIO DE DOCUMENTAÇÃO COMPROBATÓRIA\",DB_PRESTACAODECONTASENVIODOCUMENTACAO_SIM),tflat(\"PRESTAÇÃO DE CONTAS DECRETO 4723\",DB_PRESTACAOCONTAS7423_SIM),TFLAT1(\"CONTRATAÇÃO DE CELETISTA\",QTDRiscoCeletista,\"CONTRATAÇÕES DE CELETISTAS\"),TFLAT1(\"CONTRATAÇÃO DE BOLSISTA\",QtdRiscoBolsista,\"CONTRATAÇÕES DE BOLSISTAS\"),TFLAT1(\"CONTRATAÇÃO DE AUTÔNOMO\",QtdRiscoAutônomo,\"CONTRATAÇÕES DE AUTÔNOMOS\")),\"|\")","v":"PRESTAÇÃO DE CONTAS DECRETO 4723\r\n\r\n"}]
[]
[]
[]
[]
["Carteira","% DOA","CIA de","CIA Até"]
["A1",8.3566835631998015E-2,29333333.343333337,40000000,{"$f":"IF(A25=Carteira,1,0)","v":0}]
["A2",8.2876550813998098E-2,20800000.010000002,29333333.333333336,0]
["A3",8.2186265995998181E-2,14400000.01,20800000,0]
["A4",8.1495981177998264E-2,10133333.343333334,14400000,0]
["A5",8.0805696359998347E-2,8000000.0099999998,10133333.333333334,0]
["B1",8.011541154199843E-2,6666666.6766666668,8000000,0]
["B2",7.9425126723998513E-2,5600000.0099999998,6666666.666666667,0]
["B3",7.8734841905998595E-2,4800000.01,5600000,0]
["B4",7.8044557087998678E-2,4266666.6766666668,4800000,0]
["B5",7.7354272269998761E-2,4000000.01,4266666.666666667,0]
["C1",7.6663987451998844E-2,3200000.01,4000000,0]
["C2",7.5973702633998927E-2,2560000.0099999998,3200000,0]
["C3",7.528341781599901E-2,2080000.01,2560000,0]
["C4",7.4593132997999093E-2,1760000.01,2080000,0]
["C5",7.3902848179999175E-2,1600000.01,1760000,0]
["D1",7.3212563361999258E-2,1333333.3433333333,1600000,0]
["D2",7.2522278543999341E-2,1120000.01,1333333.3333333333,0]
["D3",7.1831993725999424E-2,960000.01,1120000,0]
["D4",7.1141708907999507E-2,853333.34333333338,960000,0]
["D5",7.045142408999959E-2,800000.01,853333.33333333337,0]
["E1",6.9761139271999673E-2,533333.34333333338,800000,0]
["E2",6.9070854453999755E-2,320000.01,533333.33333333337,0]
["E3",6.8380569635999838E-2,160000.01,320000,0]
["E4",6.7690284817999921E-2,53333.343333333338,160000,0]
["E5",6.7000000000000004E-2,0,53333.333333333336,0]
[]
["Faixa de Complexidade","Valor","Pontos de","Pontos até"]
[{"$f":"'BASE COMPLEXIDADE'!O3","v":"X1"},{"$f":"'BASE COMPLEXIDADE'!R3","v":1032.72045},{"$f":"'BASE COMPLEXIDADE'!P3","v":0.01},{"$f":"'BASE COMPLEXIDADE'!Q3","v":112.07},{"$f":"IF(A52=FAIXA_COMPLEXIDADE,1,0)","v":1}]
[{"$f":"'BASE COMPLEXIDADE'!O4","v":"X2"},{"$f":"'BASE COMPLEXIDADE'!R4","v":2065.4409000000001},{"$f":"'BASE COMPLEXIDADE'!P4","v":112.08},{"$f":"'BASE COMPLEXIDADE'!Q4","v":224.15},0]
[{"$f":"'BASE COMPLEXIDADE'!O5","v":"X3"},{"$f":"'BASE COMPLEXIDADE'!R5","v":3098.1613500000003},{"$f":"'BASE COMPLEXIDADE'!P5","v":224.16},{"$f":"'BASE COMPLEXIDADE'!Q5","v":336.22},0]
[{"$f":"'BASE COMPLEXIDADE'!O6","v":"X4"},{"$f":"'BASE COMPLEXIDADE'!R6","v":4130.8818000000001},{"$f":"'BASE COMPLEXIDADE'!P6","v":336.23},{"$f":"'BASE COMPLEXIDADE'!Q6","v":448.3},0]
[{"$f":"'BASE COMPLEXIDADE'!O7","v":"X5"},{"$f":"'BASE COMPLEXIDADE'!R7","v":5163.6022499999999},{"$f":"'BASE COMPLEXIDADE'!P7","v":448.31},{"$f":"'BASE COMPLEXIDADE'!Q7","v":560.37},0]
[{"$f":"'BASE COMPLEXIDADE'!O8","v":"X6"},{"$f":"'BASE COMPLEXIDADE'!R8","v":6196.3226999999997},{"$f":"'BASE COMPLEXIDADE'!P8","v":560.38},{"$f":"'BASE COMPLEXIDADE'!Q8","v":"..."},0]
[]
["RESUMO FINANCEIRO"]
["(A) CUSTO DE IMPLEMENTAÇÃO DO PROJETO",null,{"$f":"D60/$D$67","v":{"$error":"#DIV/0!"}},{"$f":"CIP","v":0}]
["(B) DOA BASE",null,{"$error":"#DIV/0!"},{"$f":"ROUND(CIP*DOA,2)","v":0}]
["(C) COMPLEXIDADE",null,{"$error":"#DIV/0!"},{"$f":"ROUND(DOA_Complexidade,2)","v":0}]
["(D) OUTROS",null,{"$error":"#DIV/0!"},{"$f":"ROUND(OutrosLançamentos,2)","v":0}]
["(E) VALOR TOTAL DA DOA (B+C+D)",null,{"$error":"#DIV/0!"},{"$f":"SUBTOTAL(9,D61:D63)","v":0}]
["(F) FUNDO DE INOVAÇÃO",null,{"$f":"D65/$D$67","v":{"$error":"#DIV/0!"}},{"$f":"FINOVACAO","v":0}]
["(G) VALOR DO ISS",null,{"$error":"#DIV/0!"},{"$f":"VALORISS","v":0}]
["(H) VALOR TOTAL DO PROJETO",null,{"$error":"#DIV/0!"},{"$f":"SUBTOTAL(9,D60:D66)","v":0}]

{"sheet":"RESUMO FIOTEC","index":3,"n_rows":68,"n_cols":5,"rows_kept":68,"cut":false,"hidden":true,"merged":[[13,1,14,3],[15,1,17,5],[18,1,21,5],[58,0,58,3],[1,1,1,6],[2,1,2,2],[3,1,4,4],[5,1,5,6],[9,1,10,3],[11,1,12,3]]}
["RESUMO"]
["NOME DO PROJETO:",{"$f":"NomeDoProjeto","v":0}]
["VIGÊNCIA (MESES):",{"$f":"Vigencia","v":1}]
["NATUREZA DO PROJETO:",{"$f":"quadro(CONCATENATE(tflat(\"ENSINO\",DB_ENSINO),tflat(\"PESQUISA\",DB_PESQUISA),tflat(\"EXTENSÃO\",DB_EXTENSAO),tflat(\"DESENVOLVIMENTO INSTITUCIONAL\",DB_DESENVOLVIMENTOINSTITUCIONAL),tflat(\"DESENVOLVIMENTO CIENTÍFICO\",DB_DESENVOLVIMENTOCIENTIFICO),tflat(\"ESTÍMULO À INOVAÇÃO\",DB_ESTIMULOAINOVACAO)),\"|\")","v":""}]
[]
["FONTE DE RECURSO:",{"$f":"FONTE_DE_RECURSO","v":0}]
["QUANTIDADE DE COORDENADORES DE SUBPROJETOS:",{"$f":"DB_QTDCOORDENADORESSUBPROJETOS","v":0}]
["EDITAL FIOCRUZ (PROGRAMA)?",{"$f":"IF(DB_EDITALFIOCRUZ_SIM<>\"\",\"SIM\",\"NÃO\")","v":"NÃO"}]
["QUANTIDADE DE PARCELAS DE DESEMBOLSO:",{"$f":"DB_QTDPARCELASDESEMBOLSO","v":0}]
["CATEGORIA:",{"$f":"quadro(CONCATENATE(tflat(\"NACIONAL\",DB_NACIONAL),tflat(\"INTERNACIONAL\",DB_INTERNACIONAL)),\"|\")","v":"NACIONAL\r\n\r\n"}]
[]
["TIPO DE FINANCIADOR:",{"$f":"quadro(CONCATENATE(tflat(\"PÚBLICO\",DB_PUBLICO),tflat(\"PRIVADO\",DB_PRIVADO),tflat(\"ECONOMIA MISTA\",DB_ECONOMIAMISTA)),\"|\")","v":"PRIVADO\r\n\r\n"}]
[]
["AGENTE FINANCIADOR:",{"$f":"quadro(CONCATENATE(tflat(\"FIOCRUZ\",DB_FIOCRUZ),tflat(\"FINEP\",DB_FINEP),tflat(\"OPAS\",DB_OPAS),tflat(\"PETROBRAS\",DB_PETROBRAS),tflat(\"OUTROS\",DB_OUTROS)),\"|\")","v":"OUTROS\r\n\r\n"}]
[]
["OUTRAS CARACTERÍSTICAS DO PROJETO:",{"$f":"quadro(CONCATENATE(tflat(\"VENDA DE LIVROS\",DB_PROJETODEARRECADACAO_SIM),tflat(\"SERVIÇOS TÉCNICOS ESPECIALIZADOS\",DB_SERVICOSTECNICOSESPECIALIZADOS_SIM),tflat(\"PRODUÇÃO DE INSUMOS\",DB_PRODUCAODEINSUMOS_SIM),tflat(\"FONTE PROVENIENTE DE CONVÊNIO\",DB_FONTEPROVENIENTEDECONVENIO_SIM),TFLAT1(\"AGENTE FINANCIADOR EXIGE DOCUMENTAÇÃO COMPROBATÓRIA DA DOA\",DB_QTDAGENTESDOCUMENTACAOCUSTOOPERACIONAL,\"AGENTES FINANCIADORES EXIGEM DOCUMENTAÇÃO COMPROBATÓRIA DA DOA\"),TFLAT1(\"AGENTE FINANCIADOR EXIGE AUTORIZAÇÃO PRÉVIA PARA REMANEJAMENTO\",DB_QTDAGENTESAUTORIZACAOREMANEJAMENTO,\"AGENTES FINANCIADORES EXIGEM AUTORIZAÇÃO PRÉVIA PARA REMANEJAMENTO\"),TFLAT1(\"AGENTE FINANCIADOR EXIGE COMPROVAÇÃO DE CONTRAPARTIDA FINANCEIRA E NÃO FINANCEIRA\",DB_QTDAGENTESCONTRAPARTIDA,\"AGENTES FINANCIADORES EXIGEM COMPROVAÇÃO DE CONTRAPARTIDA FINANCEIRA E NÃO FINANCEIRA\"),TFLAT1(\"AGENTE FINANCIADOR COM NEGOCIAÇÃO DE GARANTIA CONTRATUAL\",DB_QTDAGENTEGARANTIACONTRATUAL,\"AGENTES FINANCIADORES COM NEGOCIAÇÃO DE GARANTIA CONTRATUAL\"),TFLAT1(\"AGENTE FINANCIADOR COM MODELO PRÓPRIO DE APRESENTAÇÃO DE PROPOSTA\",DB_QTDAGENTEMODELOPROPRIOPROPOSTA,\"AGENTES FINANCIADORES COM MODELOS PRÓPRIOS DE APRESENTAÇÃO DE PROPOSTA\"),TFLAT1(\"AGENTE FINANCIADOR COM PARTICIPAÇÃO DIRETA DA FIOTEC NA (RE)NEGOCIAÇÃO DO PROJETO\",DB_QTDAGENTENEGOCIACAOFIOTEC,\"AGENTES FINANCIADORES COM PARTICIPAÇÃO DIRETA DA FIOTEC NA (RE)NEGOCIAÇÃO DO PROJETO\"),tflat(\"AQUISIÇÕES PELA LEI 8666/90\",DB_8666_SIM),tflat(\"AQUISIÇÕES PELO DECRETO 8241/10\",DB_8241_SIM),TFLAT1(\"CARTÃO PESQUISA\",DB_QTDCARTAOPESQUISA,\"CARTÕES PESQUISA\"),TFLAT1(\"LINHA TELEFÔNICA\",DB_QTDLINHATELEFONICA,\"LINHAS TELEFÔNICAS\"),tflat(\"AGENTE FINANCIADOR COM SISTEMA ESPECÍFICO\",DB_SISTEMAESPECIFICO_SIM),TFLAT1(\"EQUIPE EXECUTORA FORA DO RJ/DF\",DB_QTDEQUIPESFORARJDF,\"EQUIPES EXECUTORAS FORA DO RJ/DF\"),tflat(\"CONTROLES PARALELOS\",DB_CONTROLESPARALELOS_SIM),TFLAT1(\"PROCESSO SELETIVO\",DB_QTDPROCESSOSSELETIVOS,\"PROCESSOS SELETIVOS\")),\"|\")","v":"PRODUÇÃO DE INSUMOS\r\nAQUISIÇÕES PELO DECRETO 8241/10\r\n\r\n"}]
[]
[]
[null,{"$f":"quadro(CONCATENATE(tflat(\"DOCUMENTAÇÃO SUPLEMENTAR PARA HABILITAÇÃO\",DB_DOCUMENTACAOSUPLEMENTAR_SIM),tflat(\"PROJETO DE EDITAL\",DB_PROJETOEDITAL_SIM),tflat(\"CONHECIMENTOS TÉCNICOS ESPECÍFICOS DA FIOTEC\",DB_CONHECIMENTOTECNICOFIOTEC_SIM),TFLAT1(\"ÓRGÃO REGULADOR PARA SUBMISSÃO DO PROJETO\",DB_QTDORGAOREGULADOR,\"ÓRGÃOS REGULADORES PARA SUBMISSÃO DO PROJETO\"),TFLAT1(\"INSTÂNCIA DE APROVAÇÃO\",DB_QTDINSTACIAAPROVACAO,\"INSTÂNCIAS DE APROVAÇÃO\"),tflat(\"PARCELA REEMBOLSO\",DB_PARCELAREEMBOLSO_SIM),tflat(\"PRESTAÇÃO DE CONTAS SEM FORMULÁRIO DEFINIDO\",DB_PRESTACAODECONTASSEMFORMULARIO_SIM),tflat(\"PRESTAÇÃO DE CONTAS DIFERENCIADA\",DB_PRESTACAODECONTASDIFERENCIADA_SIM),tflat(\"PRESTAÇÃO DE CONTAS COM ENVIO DE DOCUMENTAÇÃO COMPROBATÓRIA\",DB_PRESTACAODECONTASENVIODOCUMENTACAO_SIM),tflat(\"PRESTAÇÃO DE CONTAS DECRETO 4723\",DB_PRESTACAOCONTAS7423_SIM),TFLAT1(\"CONTRATAÇÃO DE CELETISTA\",QTDRiscoCeletista,\"CONTRATAÇÕES DE CELETISTAS\"),TFLAT1(\"CONTRATAÇÃO DE BOLSISTA\",QtdRiscoBolsista,\"CONTRATAÇÕES DE BOLSISTAS\"),TFLAT1(\"CONTRATAÇÃO DE AUTÔNOMO\",QtdRiscoAutônomo,\"CONTRATAÇÕES DE AUTÔNOMOS\")),\"|\")","v":"PRESTAÇÃO DE CONTAS DECRETO 4723\r\n\r\n"}]
[]
[]
[]
[]
["Carteira","% DOA","CIA de","CIA Até"]
["A1",8.3566835631998015E-2,29333333.343333337,40000000,{"$f":"IF(A25=Carteira,1,0)","v":0}]
["A2",8.2876550813998098E-2,20800000.010000002,29333333.333333336,0]
["A3",8.2186265995998181E-2,14400000.01,20800000,0]
["A4",8.1495981177998264E-2,10133333.343333334,14400000,0]
["A5",8.0805696359998347E-2,8000000.0099999998,10133333.333333334,0]
["B1",8.011541154199843E-2,6666666.6766666668,8000000,0]
["B2",7.9425126723998513E-2,5600000.0099999998,6666666.666666667,0]
["B3",7.8734841905998595E-2,4800000.01,5600000,0]
["B4",7.8044557087998678E-2,4266666.6766666668,4800000,0]
["B5",7.7354272269998761E-2,4000000.01,4266666.666666667,0]
["C1",7.6663987451998844E-2,3200000.01,4000000,0]
["C2",7.5973702633998927E-2,2560000.0099999998,3200000,0]
["C3",7.528341781599901E-2,2080000.01,2560000,0]
["C4",7.4593132997999093E-2,1760000.01,2080000,0]
["C5",7.3902848179999175E-2,1600000.01,1760000,0]
["D1",7.3212563361999258E-2,1333333.3433333333,1600000,0]
["D2",7.2522278543999341E-2,1120000.01,1333333.3333333333,0]
["D3",7.1831993725999424E-2,960000.01,1120000,0]
["D4",7.1141708907999507E-2,853333.34333333338,960000,0]
["D5",7.045142408999959E-2,800000.01,853333.33333333337,0]
["E1",6.9761139271999673E-2,533333.34333333338,800000,0]
["E2",6.9070854453999755E-2,320000.01,533333.33333333337,0]
["E3",6.8380569635999838E-2,160000.01,320000,0]
["E4",6.7690284817999921E-2,53333.343333333338,160000,0]
["E5",6.7000000000000004E-2,0,53333.333333333336,0]
[]
["Faixa de Complexidade","Valor","Pontos de","Pontos até"]
[{"$f":"'BASE COMPLEXIDADE'!O3","v":"X1"},{"$f":"'BASE COMPLEXIDADE'!R3","v":1032.72045},{"$f":"'BASE COMPLEXIDADE'!P3","v":0.01},{"$f":"'BASE COMPLEXIDADE'!Q3","v":112.07},{"$f":"IF(A52=FAIXA_COMPLEXIDADE,1,0)","v":1}]
[{"$f":"'BASE COMPLEXIDADE'!O4","v":"X2"},{"$f":"'BASE COMPLEXIDADE'!R4","v":2065.4409000000001},{"$f":"'BASE COMPLEXIDADE'!P4","v":112.08},{"$f":"'BASE COMPLEXIDADE'!Q4","v":224.15},0]
[{"$f":"'BASE COMPLEXIDADE'!O5","v":"X3"},{"$f":"'BASE COMPLEXIDADE'!R5","v":3098.1613500000003},{"$f":"'BASE COMPLEXIDADE'!P5","v":224.16},{"$f":"'BASE COMPLEXIDADE'!Q5","v":336.22},0]
[{"$f":"'BASE COMPLEXIDADE'!O6","v":"X4"},{"$f":"'BASE COMPLEXIDADE'!R6","v":4130.8818000000001},{"$f":"'BASE COMPLEXIDADE'!P6","v":336.23},{"$f":"'BASE COMPLEXIDADE'!Q6","v":448.3},0]
[{"$f":"'BASE COMPLEXIDADE'!O7","v":"X5"},{"$f":"'BASE COMPLEXIDADE'!R7","v":5163.6022499999999},{"$f":"'BASE COMPLEXIDADE'!P7","v":448.31},{"$f":"'BASE COMPLEXIDADE'!Q7","v":560.37},0]
[{"$f":"'BASE COMPLEXIDADE'!O8","v":"X6"},{"$f":"'BASE COMPLEXIDADE'!R8","v":6196.3226999999997},{"$f":"'BASE COMPLEXIDADE'!P8","v":560.38},{"$f":"'BASE COMPLEXIDADE'!Q8","v":"..."},0]
[]
["RESUMO FINANCEIRO"]
["(A) CUSTO DE IMPLEMENTAÇÃO DO PROJETO",null,{"$f":"D60/$D$68","v":{"$error":"#DIV/0!"}},{"$f":"CIP","v":0}]
["(B) DOA BASE",null,{"$error":"#DIV/0!"},{"$f":"ROUND(CIP*DOA,2)","v":0}]
["(C) COMPLEXIDADE",null,{"$error":"#DIV/0!"},{"$f":"ROUND(DOA_Complexidade,2)-ROUND(DOA_Riscos,2)","v":0}]
["(D) RISCOS",null,{"$error":"#DIV/0!"},{"$f":"ROUND(DOA_Riscos,2)","v":0}]
["(E) OUTROS",null,{"$error":"#DIV/0!"},{"$f":"ROUND(OutrosLançamentos,2)","v":0}]
["(F) VALOR TOTAL DA DOA (B+C+D+E)",null,{"$error":"#DIV/0!"},{"$f":"SUBTOTAL(9,D61:D64)","v":0}]
["(G) FUNDO DE INOVAÇÃO",null,{"$error":"#DIV/0!"},{"$f":"FINOVACAO","v":0}]
["(H) VALOR DO ISS",null,{"$f":"D67/$D$68","v":{"$error":"#DIV/0!"}},{"$f":"VALORISS","v":0}]
["(I) VALOR TOTAL DO PROJETO",null,{"$error":"#DIV/0!"},{"$f":"SUBTOTAL(9,D60:D67)","v":0}]

{"sheet":"TABELA DOA","index":4,"n_rows":32,"n_cols":6,"rows_kept":32,"cut":false,"hidden":true,"merged":[]}
["Enquadramento","Carteira","Denominação","Percentual","CIA de","CIA Até"]
[{"$f":"IF(AND(CIA>E2),\"SIM\",\"NÃO\")","v":"NÃO"},"A1","Carteira A1",8.3566835631998015E-2,29333333.343333337,40000000]
[{"$f":"IF(AND(CIA>E3,CIA<=F3),\"SIM\",\"NÃO\")","v":"NÃO"},"A2","Carteira A2",8.2876550813998098E-2,20800000.010000002,29333333.333333336]
["NÃO","A3","Carteira A3",8.2186265995998181E-2,14400000.01,20800000]
["NÃO","A4","Carteira A4",8.1495981177998264E-2,10133333.343333334,14400000]
["NÃO","A5","Carteira A5",8.0805696359998347E-2,8000000.0099999998,10133333.333333334]
["NÃO","B1","Carteira B1",8.011541154199843E-2,6666666.6766666668,8000000]
["NÃO","B2","Carteira B2",7.9425126723998513E-2,5600000.0099999998,6666666.666666667]
["NÃO","B3","Carteira B3",7.8734841905998595E-2,4800000.01,5600000]
["NÃO","B4","Carteira B4",7.8044557087998678E-2,4266666.6766666668,4800000]
["NÃO","B5","Carteira B5",7.7354272269998761E-2,4000000.01,4266666.666666667]
["NÃO","C1","Carteira C1",7.6663987451998844E-2,3200000.01,4000000]
["NÃO","C2","Carteira C2",7.5973702633998927E-2,2560000.0099999998,3200000]
["NÃO","C3","Carteira C3",7.528341781599901E-2,2080000.01,2560000]
["NÃO","C4","Carteira C4",7.4593132997999093E-2,1760000.01,2080000]
["NÃO","C5","Carteira C5",7.3902848179999175E-2,1600000.01,1760000]
["NÃO","D1","Carteira D1",7.3212563361999258E-2,1333333.3433333333,1600000]
["NÃO","D2","Carteira D2",7.2522278543999341E-2,1120000.01,1333333.3333333333]
["NÃO","D3","Carteira D3",7.1831993725999424E-2,960000.01,1120000]
["NÃO","D4","Carteira D4",7.1141708907999507E-2,853333.34333333338,960000]
["NÃO","D5","Carteira D5",7.045142408999959E-2,800000.01,853333.33333333337]
["NÃO","E1","Carteira E1",6.9761139271999673E-2,533333.34333333338,800000]
["NÃO","E2","Carteira E2",6.9070854453999755E-2,320000.01,533333.33333333337]
["NÃO","E3","Carteira E3",6.8380569635999838E-2,160000.01,320000]
["NÃO","E4","Carteira E4",6.7690284817999921E-2,53333.343333333338,160000]
["NÃO","E5","Carteira E5",6.7000000000000004E-2,0,53333.333333333336]
[]
[null,"CIA",{"$f":"IF(Vigencia<=12,CIP,IF(ISERR(CIP/Vigencia*12),0,CIP/Vigencia*12))","v":0}]
[null,"Carteira",{"$f":"IF(ISERROR(VLOOKUP(\"SIM\",A2:B26,2,FALSE)),\"\",VLOOKUP(\"SIM\",A2:B26,2,FALSE))","v":""}]
[null,"DOA(%)",{"$f":"ROUND(IF(ISERROR(VLOOKUP(Carteira,$B$2:$D$26,3,FALSE)),0,VLOOKUP(Carteira,$B$2:$D$26,3,FALSE)),4)","v":0}]
[null,"Cia Mín:",{"$f":"IF(ISERROR(VLOOKUP(Carteira,$B$2:$F$26,4,FALSE)),\"\",VLOOKUP(Carteira,$B$2:$F$26,4,FALSE))","v":""}]
[null,"Cia Máx:",{"$f":"IF(ISERROR(VLOOKUP(Carteira,$B$2:$F$26,5,FALSE)),\"\",VLOOKUP(Carteira,$B$2:$F$26,5,FALSE))","v":""}]

{"sheet":"COMPLEXIDADE","index":5,"n_rows":56,"n_cols":14,"rows_kept":56,"cut":false,"hidden":true,"merged":[[54,1,54,12],[55,1,55,12],[31,1,35,1],[36,1,44,1],[45,1,49,1],[53,1,53,12],[50,1,52,1],[27,1,30,1],[2,1,3,1],[4,1,6,1],[7,1,12,1],[13,1,18,1],[19,1,26,1]]}
[]
["Código","Tipo de atributo","Valor do atributo","Incidência (SIM/NÃO)","Quantidade Iniciação","Unidade da Iniciação","Pontos Iniciação","Quantidade Execução","Unidade da Execução","Pontos Execução","Quantidade Prestação de Contas","Unidade da Prestação de Contas","Pontos Prestação de Contas","Pontos de Complexidade"]
[1,"Categoria","Nacional",{"$f":"IF(DB_NACIONAL<>\"\",\"SIM\",\"NÃO\")","v":"SIM"},{"$f":"IF(D3=\"SIM\",1,0)","v":1},"Unidade",{"$f":"VLOOKUP($A3,BASE_COMPLEXIDADE,11,FALSE)","v":1.75},{"$f":"IF(D3=\"SIM\",Vigencia,0)","v":1},"Mês de vigência",{"$f":"VLOOKUP($A3,BASE_COMPLEXIDADE,12,FALSE)","v":10.525313793073497},{"$f":"IF(D3=\"SIM\",1,0)","v":1},"Unidade",{"$f":"VLOOKUP($A3,BASE_COMPLEXIDADE,13,FALSE)","v":3.5096946558039548},{"$f":"(E3*G3)+(H3*J3)+(K3*M3)","v":15.785008448877452}]
[2,null,"Internacional",{"$f":"IF(DB_INTERNACIONAL<>\"\",\"SIM\",\"NÃO\")","v":"NÃO"},{"$f":"IF(D4=\"SIM\",1,0)","v":0},"Unidade",2,0,"Mês de vigência",12.440997530762383,{"$f":"IF(D4=\"SIM\",1,0)","v":0},"Unidade",3.1197285829368488,{"$f":"(E4*G4)+(H4*J4)+(K4*M4)","v":0}]
[3,"Tipo de Financiador","Público",{"$f":"IF(DB_PUBLICO<>\"\",\"SIM\",\"NÃO\")","v":"NÃO"},0,"Unidade",2.25,0,"Mês de vigência",10.492473500427403,0,"Unidade",3.1197285829368488,0]
[4,null,"Privado",{"$f":"IF(DB_PRIVADO<>\"\",\"SIM\",\"NÃO\")","v":"SIM"},1,"Unidade",1.5,1,"Mês de vigência",11.603570068286956,1,"Unidade",3.5096946558039548,16.613264724090911]
[5,null,"Economia Mista",{"$f":"IF(DB_ECONOMIAMISTA<>\"\",\"SIM\",\"NÃO\")","v":"NÃO"},0,"Unidade",1,0,"Mês de vigência",5.473382107682526,0,"Unidade",1.5598642914684244,0]
[6,"Agente Financiador","Fiocruz",{"$f":"IF(DB_FIOCRUZ<>\"\",\"SIM\",\"NÃO\")","v":"NÃO"},0,"Unidade",2,0,"Mês de vigência",9.0529740061068971,0,"Unidade",2.3397964372026365,0]
[7,null,"FINEP",{"$f":"IF(DB_FINEP<>\"\",\"SIM\",\"NÃO\")","v":"NÃO"},0,"Unidade",3,0,"Mês de vigência",15.735973559587261,0,"Unidade",3.8996607286710612,0]
[8,null,"BNDES",{"$f":"IF(DB_BNDES<>\"\",\"SIM\",\"NÃO\")","v":"NÃO"},0,"Unidade",3,0,"Mês de vigência",13.989964667236537,0,"Unidade",3.8996607286710612,0]
[9,null,"OPAS",{"$f":"IF(DB_OPAS<>\"\",\"SIM\",\"NÃO\")","v":"NÃO"},0,"Unidade",2.6669999999999998,0,"Mês de vigência",13.075909855253553,0,"Unidade",3.5096946558039548,0]
[10,null,"Petrobras",{"$f":"IF(DB_PETROBRAS<>\"\",\"SIM\",\"NÃO\")","v":"NÃO"},0,"Unidade",3,0,"Mês de vigência",15.735973559587261,0,"Unidade",4.1601580653462875,0]
[11,null,"Outros",{"$f":"IF(DB_OUTROS<>\"\",\"SIM\",\"NÃO\")","v":"SIM"},1,"Unidade",1.5,1,"Mês de vigência",11.494102426133304,1,"Unidade",3.1197285829368488,16.113831009070154]
[12,"Classificação","Ensino",{"$f":"IF(DB_ENSINO<>\"\",\"SIM\",\"NÃO\")","v":"NÃO"},0,"Unidade",1.75,0,"Mês de vigência",9.2062287051220082,0,"Unidade",2.3397964372026365,0]
[13,null,"Pesquisa",{"$f":"IF(DB_PESQUISA<>\"\",\"SIM\",\"NÃO\")","v":"NÃO"},0,"Unidade",2.25,0,"Mês de vigência",11.132859207026257,0,"Unidade",3.1197285829368488,0]
[14,null,"Extensão",{"$f":"IF(DB_EXTENSAO<>\"\",\"SIM\",\"NÃO\")","v":"NÃO"},0,"Unidade",1.5,0,"Mês de vigência",9.6824129484903878,0,"Unidade",2.3397964372026365,0]
[15,null,"Desenvolvimento Institucional",{"$f":"IF(DB_DESENVOLVIMENTOINSTITUCIONAL<>\"\",\"SIM\",\"NÃO\")","v":"NÃO"},0,"Unidade",2,0,"Mês de vigência",9.9068216149053718,0,"Unidade",2.6002937738778638,0]
[16,null,"Desenvolvimento Científico e Tecnológico",{"$f":"IF(DB_DESENVOLVIMENTOCIENTIFICO<>\"\",\"SIM\",\"NÃO\")","v":"NÃO"},0,"Unidade",2,0,"Mês de vigência",11.444841987164162,0,"Unidade",2.7297625100697429,0]
[17,null,"Estímulo à Inovação",{"$f":"IF(DB_ESTIMULOAINOVACAO<>\"\",\"SIM\",\"NÃO\")","v":"NÃO"},0,"Unidade",2.5,0,"Mês de vigência",10.262591451904736,0,"Unidade",3.1197285829368488,0]
[18,"Recursos","Projeto de arrecadação (venda de livros)",{"$f":"IF(DB_PROJETODEARRECADACAO_SIM<>\"\",\"SIM\",\"NÃO\")","v":"NÃO"},0,"Unidade",1.25,0,"Mês de vigência",9.4853711926138189,0,"Unidade",3.6391633919958344,0]
[44,null,"Projeto de arrecadação (serviços técnicos especializados)",{"$f":"IF(DB_SERVICOSTECNICOSESPECIALIZADOS_SIM<>\"\",\"SIM\",\"NÃO\")","v":"NÃO"},0,"Unidade",1,0,"Mês de vigência",10.946764215365052,0,"Unidade",4.6795928744052731,0]
[45,null,"Projeto de arrecadação (produção de insumos para a saúde)",{"$f":"IF(DB_PRODUCAODEINSUMOS_SIM<>\"\",\"SIM\",\"NÃO\")","v":"SIM"},1,"Unidade",1,1,"Mês de vigência",16.420146323047579,1,"Unidade",1.5598642914684244,18.980010614516004]
[19,null,"Agentes financiadores múltiplos",{"$f":"IF(DB_QTDAGENTESFINANCIADORES>1,\"SIM\",\"NÃO\")","v":"NÃO"},{"$f":"IF(D23=\"SIM\",DB_QTDAGENTESFINANCIADORES-1,0)","v":0},"Agente financiador adicional",2,{"$f":"E23*DB_QTDPARCELASDESEMBOLSO","v":0},"Parcela de desembolso/financiador adicional",14.854759040250375,{"$f":"E23","v":0},"Agente financiador adicional",4.1601580653462875,0]
[21,null,"Custo Operacional com documentação comprobatória",{"$f":"IF(DB_QTDAGENTESDOCUMENTACAOCUSTOOPERACIONAL>0,\"SIM\",\"NÃO\")","v":"NÃO"},{"$f":"DB_QTDAGENTESDOCUMENTACAOCUSTOOPERACIONAL","v":0},"Agente financiador",1,{"$f":"IF(D24=\"SIM\",Vigencia,0)","v":0},"Mês de vigência",5.473382107682526,{"$f":"IF(D24=\"SIM\",1,0)","v":0},"Unidade",4.6795928744052731,0]
[22,null,"Remanejamento com autorização prévia",{"$f":"IF(DB_QTDAGENTESAUTORIZACAOREMANEJAMENTO>0,\"SIM\",\"NÃO\")","v":"NÃO"},{"$f":"DB_QTDAGENTESAUTORIZACAOREMANEJAMENTO","v":0},"Agente financiador",2,0,"Mês de vigência",10.541733939396545,0,"Unidade",3.1197285829368488,0]
[46,null,"Fonte proveniente de convênio","NÃO",null,null,0,0,"Mês de vigência",5.473382107682526,null,null,0,0]
[23,null,"Comprovação de contrapartida financeira e não financeira",{"$f":"IF(DB_QTDAGENTESCONTRAPARTIDA>0,\"SIM\",\"NÃO\")","v":"NÃO"},{"$f":"DB_QTDAGENTESCONTRAPARTIDA","v":0},"Agente financiador",2.5,0,"Mês de vigência",12.659932815069684,0,"Unidade",3.8996607286710612,0]
[25,"Aquisições","Lei 8666/90",{"$f":"IF(DB_8666_SIM<>\"\",\"SIM\",\"NÃO\")","v":"NÃO"},{"$f":"IF(D28=\"SIM\",1,0)","v":0},"Unidade",2.25,0,"Mês de vigência",11.466735515594893,0,"Unidade",2.7297625100697429,0]
[50,null,"Decreto 8241/10",{"$f":"IF(DB_8241_SIM<>\"\",\"SIM\",\"NÃO\")","v":"SIM"},null,null,0,1,"Mês de vigência",5.473382107682526,null,null,0,5.473382107682526]
[26,null,"Cartão Pesquisa",{"$f":"IF(DB_QTDCARTAOPESQUISA>0,\"SIM\",\"NÃO\")","v":"NÃO"},0,"Unidade",2,{"$f":"E30*Vigencia","v":0},"Cartão/Mês de vigência",13.683455269206314,0,"Unidade",3.1197285829368488,0]
[27,null,"Linhas Telefônicas",{"$f":"IF(DB_QTDLINHATELEFONICA>0,\"SIM\",\"NÃO\")","v":"NÃO"},{"$f":"DB_QTDLINHATELEFONICA","v":0},null,0,{"$f":"E31*Vigencia","v":0},"Linha telefônica/Mês de vigência",10.946764215365052,0,"Unidade",3.1197285829368488,0]
[28,"Operações","Coordenadores múltiplos (subprojetos)",{"$f":"IF(DB_QTDCOORDENADORESSUBPROJETOS>0,\"SIM\",\"NÃO\")","v":"NÃO"},{"$f":"DB_QTDCOORDENADORESSUBPROJETOS","v":0},"Subprojeto",1.667,{"$f":"E32","v":0},"Subprojeto",12.939075302561491,{"$f":"E32","v":0},"Subprojeto",4.2896268015381676,0]
[30,null,"Agente financiador com sistema específico",{"$f":"IF(DB_SISTEMAESPECIFICO_SIM<>\"\",\"SIM\",\"NÃO\")","v":"NÃO"},{"$f":"IF(D33=\"SIM\",1,0)","v":0},"Unidade",2,{"$f":"IF(D33=\"SIM\",Vigencia,0)","v":0},"Mês de vigência",5.473382107682526,{"$f":"IF(D33=\"SIM\",1,0)","v":0},"Unidade",3.1197285829368488,0]
[47,null,"Processo seletivo para contratação de pessoas",{"$f":"IF(DB_QTDPROCESSOSSELETIVOS>0,\"SIM\",\"NÃO\")","v":"NÃO"},null,null,0,{"$f":"DB_QTDPROCESSOSSELETIVOS","v":0},"Quantidade de processos",16.420146323047579,null,null,0,0]
[48,null,"Controles Paralelos (Ex.: LOA/TED no mesmo projeto)",{"$f":"IF(DB_CONTROLESPARALELOS_SIM<>\"\",\"SIM\",\"NÃO\")","v":"NÃO"},{"$f":"IF(D35=\"SIM\",1,0)","v":0},"Unidade",1,{"$f":"IF(D35=\"SIM\",Vigencia,0)","v":0},"Mês de vigência",5.473382107682526,{"$f":"IF(D35=\"SIM\",1,0)","v":0},"Unidade",1.5598642914684244,{"$f":"(E35*G35)+(H35*J35)+(K35*M35)","v":0}]
[31,null,"Equipe executora em outros estados (fora RJ e DF)",{"$f":"IF(DB_QTDEQUIPESFORARJDF>0,\"SIM\",\"NÃO\")","v":"NÃO"},0,"Unidade",2.25,{"$f":"DB_QTDEQUIPESFORARJDF","v":0},"Localidade/Mês de vigência",11.576203157748544,0,"Unidade",3.5096946558039548,0]
[32,"Iniciação","Negociação de garantia contratual",{"$f":"IF(DB_QTDAGENTEGARANTIACONTRATUAL>0,\"SIM\",\"NÃO\")","v":"NÃO"},{"$f":"DB_QTDAGENTEGARANTIACONTRATUAL","v":0},"Agente financiador",2,null,null,0,null,null,0,0]
[33,null,"Documentação suplementar para habilitação",{"$f":"IF(DB_DOCUMENTACAOSUPLEMENTAR_SIM<>\"\",\"SIM\",\"NÃO\")","v":"NÃO"},{"$f":"IF(D38=\"SIM\",1,0)","v":0},"Unidade",1,null,null,0,null,null,0,0]
[34,null,"Modelos diferentes para apresentação da proposta",{"$f":"IF(DB_QTDAGENTEMODELOPROPRIOPROPOSTA>0,\"SIM\",\"NÃO\")","v":"NÃO"},{"$f":"DB_QTDAGENTEMODELOPROPRIOPROPOSTA","v":0},"Agente financiador",1,null,null,0,null,null,0,0]
[35,null,"Projeto de edital",{"$f":"IF(DB_PROJETOEDITAL_SIM<>\"\",\"SIM\",\"NÃO\")","v":"NÃO"},0,"Unidade",3,null,null,0,null,null,0,0]
[49,null,"Projeto com edital Fiocruz (Programa)",{"$f":"IF(DB_EDITALFIOCRUZ_SIM<>\"\",\"SIM\",\"NÃO\")","v":"NÃO"},{"$f":"IF(D41=\"SIM\",1,0)","v":0},"Unidade",2,null,null,0,null,null,0,0]
[36,null,"Necessidade de integração com outras áreas da Fiotec",{"$f":"IF(DB_CONHECIMENTOTECNICOFIOTEC_SIM<>\"\",\"SIM\",\"NÃO\")","v":"NÃO"},0,"Unidade",2,null,null,0,null,null,0,0]
[37,null,"Necessidade de participação direta na (re)negociação do projeto",{"$f":"IF(DB_QTDAGENTENEGOCIACAOFIOTEC>0,\"SIM\",\"NÃO\")","v":"NÃO"},{"$f":"DB_QTDAGENTENEGOCIACAOFIOTEC","v":0},"Agente financiador",3,null,null,0,null,null,0,0]
[38,null,"Necessidade de submissão e aprovação dos órgãos reguladores",{"$f":"IF(DB_QTDORGAOREGULADOR>0,\"SIM\",\"NÃO\")","v":"NÃO"},{"$f":"DB_QTDORGAOREGULADOR","v":0},"Órgão regulador",2,null,null,0,null,null,0,0]
[39,null,"Várias instâncias de aprovação",{"$f":"IF(DB_QTDINSTACIAAPROVACAO>1,\"SIM\",\"NÃO\")","v":"NÃO"},{"$f":"IF(D45=\"SIM\",DB_QTDINSTACIAAPROVACAO-1,0)","v":0},"Instância de aprovação (a partir da segunda)",3,null,null,0,null,null,0,0]
[40,"Prestação de contas","Parcela reembolso",{"$f":"IF(DB_PARCELAREEMBOLSO_SIM<>\"\",\"SIM\",\"NÃO\")","v":"NÃO"},null,null,0,null,null,0,{"$f":"IF(D46=\"SIM\",1,0)","v":0},"Unidade",3.1197285829368488,0]
[41,null,"Prestação de contas sem formulário definido",{"$f":"IF(DB_PRESTACAODECONTASSEMFORMULARIO_SIM<>\"\",\"SIM\",\"NÃO\")","v":"NÃO"},null,null,0,null,null,0,0,"Unidade",1.5598642914684244,0]
[42,null,"Prestação de contas diferenciada",{"$f":"IF(DB_PRESTACAODECONTASDIFERENCIADA_SIM<>\"\",\"SIM\",\"NÃO\")","v":"NÃO"},null,null,0,null,null,0,0,"Unidade",3.1197285829368488,0]
[43,null,"Prestação de contas com envio de documentação comprobatória",{"$f":"IF(DB_PRESTACAODECONTASENVIODOCUMENTACAO_SIM<>\"\",\"SIM\",\"NÃO\")","v":"NÃO"},null,null,0,null,null,0,0,"Unidade",4.6795928744052731]
[51,null,"Prestação de contas Decreto 7.423/2010","SIM",null,null,0,null,null,0,1,"Unidade",1.5598642914684244,1.5598642914684244]
[52,"Riscos","Contratação de celetista",{"$f":"IF(H51>0,\"SIM\",\"NÃO\")","v":"NÃO"},null,null,null,{"$f":"'BASE COMPLEXIDADE'!E51","v":0},"Profissionais",{"$f":"IF(H51=0,0,'BASE COMPLEXIDADE'!L51/H51)","v":0},null,null,null,0]
[53,null,"Contratação de bolsista",{"$f":"IF(H52>0,\"SIM\",\"NÃO\")","v":"NÃO"},null,null,null,{"$f":"'BASE COMPLEXIDADE'!E52","v":0},"Profissionais",{"$f":"IF(H52=0,0,'BASE COMPLEXIDADE'!L52/H52)","v":0},null,null,null,0]
[54,null,"Contratação de autônomo","NÃO",null,null,null,{"$f":"'BASE COMPLEXIDADE'!E53","v":0},"Profissionais",{"$f":"IF(H53=0,0,'BASE COMPLEXIDADE'!L53/H53)","v":0},null,null,null,0]
[null,"TOTAL",null,null,null,null,null,null,null,null,null,null,null,{"$f":"SUM(N3:N53)","v":74.525361195705472}]
[null,"FAIXA DE COMPLEXIDADE",null,null,null,null,null,null,null,null,null,null,null,{"$f":"IF(DOA_TOTALPONTOS<'BASE COMPLEXIDADE'!P4,\"X1\",IF(DOA_TOTALPONTOS<'BASE COMPLEXIDADE'!P5,\"X2\",IF(DOA_TOTALPONTOS<'BASE COMPLEXIDADE'!P6,\"X3\",IF(DOA_TOTALPONTOS<'BASE COMPLEXIDADE'!P7,\"X4\",IF(DOA_TOTALPONTOS<'BASE COMPLEXIDADE'!P8,\"X5\",\"X6\")))))","v":"X1"}]
[null,"TOTAL",null,null,null,null,null,null,null,null,null,null,null,{"$f":"IF(DOA=0,0,VLOOKUP(FAIXA_COMPLEXIDADE,'BASE COMPLEXIDADE'!$O$3:$R$8,4,FALSE))","v":0}]

{"sheet":"BASE COMPLEXIDADE","index":6,"n_rows":58,"n_cols":18,"rows_kept":58,"cut":false,"hidden":true,"merged":[[0,10,0,12],[0,14,0,17]]}
["Base Iniciação:",6851.93,"Base Execução:",2762.85,"Base PC:",10129.84,"I.Complexidade:",0.3,"Fator Vigência:",{"$f":"Vigencia/12","v":8.3333333333333329E-2},"Pontos Ponderados",null,null,null,"Faixas de Complexidade"]
["Item","Descrição","Tipo","Peso Iniciação","Peso Execução","Peso P. de Contas","Valor Iniciação","Valor Execução","Valor P. Contas","Por mês","Iniciação","Execução","P.Contas",null,"Faixa","Pontos de","Pontos até","Valor"]
[1,"Nacional","Categoria",1.75,1.923,2.25,{"$f":"($B$1*$H$1)*(D3/SUBTOTAL(9,D$3:D$53))","v":46.971472500783456},{"$f":"($D$1*$H$1)*(E3/SUBTOTAL(9,E$3:E$53))","v":23.542356542546123},{"$f":"($F$1*$H$1)*(F3/SUBTOTAL(9,F$3:F$53))","v":94.203157720709783},{"$f":"H3/12","v":1.961863045212177},{"$f":"D3*FatorIniciação","v":1.75},{"$f":"E3*FatorExecução","v":10.525313793073497},{"$f":"F3*FatorPrestaçãoDeContas","v":3.5096946558039548},null,"X1",0.01,{"$f":"ROUND(SUM($K$3:$M$53)/5,2)","v":112.07},{"$f":"((($B$1+($D$1*Vigencia/12)+$F$1)*$H$1)/5)+DOA_Riscos","v":1032.72045}]
[2,"Internacional","Categoria",2,2.2730000000000001,2,{"$f":"($B$1*$H$1)*(D4/SUBTOTAL(9,D$3:D$53))","v":53.681682858038236},{"$f":"($D$1*$H$1)*(E4/SUBTOTAL(9,E$3:E$53))","v":27.827236828500954},{"$f":"($F$1*$H$1)*(F4/SUBTOTAL(9,F$3:F$53))","v":83.736140196186469},{"$f":"H4/12","v":2.3189364023750794},2,12.440997530762383,3.1197285829368488,null,"X2",{"$f":"Q3+0.01","v":112.08},{"$f":"ROUND(SUM($K$3:$M$53)/5*2,2)","v":224.15},{"$f":"(((($B$1+($D$1*Vigencia/12)+$F$1)*$H$1)/5)*2)+DOA_Riscos","v":2065.4409000000001}]
[3,"Público","Tipo de Financiador",2.25,1.917,2,60.391893215293017,23.468901451929753,83.736140196186469,1.9557417876608127,2.25,10.492473500427403,3.1197285829368488,null,"X3",{"$f":"Q4+0.01","v":224.16},{"$f":"ROUND(SUM($K$3:$M$53)/5*3,2)","v":336.22},{"$f":"(((($B$1+($D$1*Vigencia/12)+$F$1)*$H$1)/5)*3)+DOA_Riscos","v":3098.1613500000003}]
[4,"Privado","Tipo de Financiador",1.5,2.12,2.25,40.261262143528675,25.954132017783557,94.203157720709783,2.1628443348152966,1.5,11.603570068286956,3.5096946558039548,null,"X4",336.23,{"$f":"ROUND(SUM($K$3:$M$53)/5*4,2)","v":448.3},{"$f":"(((($B$1+($D$1*Vigencia/12)+$F$1)*$H$1)/5)*4)+DOA_Riscos","v":4130.8818000000001}]
[5,"Economia Mista","Tipo de Financiador",1,1,1,26.840841429019118,12.242515102728092,41.868070098093234,1.0202095918940077,1,5.473382107682526,1.5598642914684244,null,"X5",448.31,{"$f":"ROUND(SUM($K$3:$M$53),2)","v":560.37},{"$f":"(((($B$1+($D$1*Vigencia/12)+$F$1)*$H$1)/5)*5)+DOA_Riscos","v":5163.6022499999999}]
[6,"Fiocruz","Agente Financiador",2,1.6539999999999999,1.5,53.681682858038236,20.249119979912262,62.802105147139855,1.6874266649926886,2,9.0529740061068971,2.3397964372026365,null,"X6",560.38,"...",{"$f":"R7*1.2","v":6196.3226999999997}]
[7,"FINEP","Agente Financiador",3,2.875,2.5,80.522524287057351,35.197230920343266,104.6701752452331,2.9331025766952723,3,15.735973559587261,3.8996607286710612]
[8,"BNDES","Agente Financiador",3,2.556,2.5,80.522524287057351,31.291868602573004,104.6701752452331,2.6076557168810837,3,13.989964667236537,3.8996607286710612,null,"Faixa atribuída:",null,{"$f":"FAIXA_COMPLEXIDADE","v":"X1"}]
[9,"OPAS","Agente Financiador",2.6669999999999998,2.3889999999999998,2.25,71.584524091193984,29.247368580417412,94.203157720709783,2.4372807150347842,2.6669999999999998,13.075909855253553,3.5096946558039548,null,"Pts. Mínimo:",null,{"$f":"VLOOKUP(Q10,$O$3:$R$8,2,FALSE)","v":0.01}]
[10,"Petrobras","Agente Financiador",3,2.875,2.6669999999999998,80.522524287057351,35.197230920343266,111.66214295161465,2.9331025766952723,3,15.735973559587261,4.1601580653462875,null,"Pts. Máximo:",null,{"$f":"VLOOKUP(Q10,$O$3:$R$8,3,FALSE)","v":112.07}]
[11,"Outros","Agente Financiador",1.5,2.1,2,40.261262143528675,25.709281715728995,83.736140196186469,2.1424401429774163,1.5,11.494102426133304,3.1197285829368488,null,"Valor:",null,{"$f":"VLOOKUP(Q10,$O$3:$R$8,4,FALSE)","v":1032.72045}]
[12,"Ensino","Classificação",1.75,1.6819999999999999,1.5,46.971472500783456,20.591910402788653,62.802105147139855,1.7159925335657211,1.75,9.2062287051220082,2.3397964372026365]
[13,"Pesquisa","Classificação",2.25,2.0339999999999998,2,60.391893215293017,24.901275718948938,83.736140196186469,2.0751063099124116,2.25,11.132859207026257,3.1197285829368488]
[14,"Extensão","Classificação",1.5,1.7689999999999999,1.5,40.261262143528675,21.657009216725996,62.802105147139855,1.8047507680604997,1.5,9.6824129484903878,2.3397964372026365]
[15,"Desenvolvimento Institucional","Classificação",2,1.81,1.667,53.681682858038236,22.158952335937848,69.794072853521428,1.846579361328154,2,9.9068216149053718,2.6002937738778638]
[16,"Desenvolvimento Científico e Tecnológico","Classificação",2,2.0910000000000002,1.75,53.681682858038236,25.599099079804443,73.269122671663169,2.1332582566503704,2,11.444841987164162,2.7297625100697429]
[17,"Estímulo à Inovação","Classificação",2.5,1.875,2,67.10210357254779,22.954715817615174,83.736140196186469,1.9128929848012646,2.5,10.262591451904736,3.1197285829368488]
[18,"Projeto de arrecadação (venda de livros)","Recursos",1.25,1.7330000000000001,2.3330000000000002,33.551051786273895,21.216278673027784,97.678207538851538,1.7680232227523154,1.25,9.4853711926138189,3.6391633919958344]
[44,"Projeto de arrecadação (serviços técnicos especializados)","Recursos",1,2,3,26.840841429019118,24.485030205456184,125.60421029427971,{"$f":"H21/12","v":2.0404191837880155},1,10.946764215365052,4.6795928744052731]
[45,"Projeto de arrecadação (produção de insumos para a saúde)","Recursos",1,3,1,26.840841429019118,36.727545308184276,41.868070098093234,{"$f":"H22/12","v":3.060628775682023},1,16.420146323047579,1.5598642914684244]
[19,"Agentes financiadores múltiplos","Recursos",2,2.714,2.6669999999999998,53.681682858038236,33.226185988804041,111.66214295161465,2.7688488324003369,2,14.854759040250375,4.1601580653462875]
[21,"Custo Operacional explícito com documentação comprobatória","Recursos",1,1,3,26.840841429019118,12.242515102728092,125.60421029427971,1.0202095918940077,1,5.473382107682526,4.6795928744052731]
[22,"Remanejamento com autorização prévia","Recursos",2,1.9259999999999999,2,53.681682858038236,23.579084087854305,83.736140196186469,1.9649236739878588,2,10.541733939396545,3.1197285829368488]
[46,"Fonte proveniente de convênio","Recursos",0,1,0,0,12.242515102728092,0,{"$f":"H26/12","v":1.0202095918940077},0,5.473382107682526,0]
[23,"Comprovação de contrapartida financeira e não financeira","Recursos",2.5,2.3130000000000002,2.5,67.10210357254779,28.316937432610082,104.6701752452331,2.35974478605084,2.5,12.659932815069684,3.8996607286710612]
[25,"Lei 8666/90","Aquisições",2.25,2.0950000000000002,1.75,60.391893215293017,25.648069140215359,73.269122671663169,2.1373390950179467,2.25,11.466735515594893,2.7297625100697429]
[50,"Decreto 8241/10","Aquisições",0,1,0,0,12.242515102728092,0,1.0202095918940077,0,5.473382107682526,0]
[26,"Cartão Pesquisa","Aquisições",2,2.5,2,53.681682858038236,30.606287756820233,83.736140196186469,2.5505239797350194,2,13.683455269206314,3.1197285829368488]
[27,"Linhas telefônicas","Aquisições",0,2,2,0,24.485030205456184,83.736140196186469,2.0404191837880155,0,10.946764215365052,3.1197285829368488]
[28,"Coordenadores múltiplos (subprojetos)","Operações",1.667,2.3639999999999999,2.75,44.743682662174869,28.94130570284921,115.1371927697564,2.4117754752374343,1.667,12.939075302561491,4.2896268015381676]
[30,"Agente financiador com sistema específico","Operações",2,1,2,53.681682858038236,12.242515102728092,83.736140196186469,1.0202095918940077,2,5.473382107682526,3.1197285829368488]
[47,"Processo seletivo para contratação de pessoas","Operações",0,3,0,0,36.727545308184276,0,{"$f":"H34/12","v":3.060628775682023},0,16.420146323047579,0]
[48,"Controles Paralelos (Ex.: LOA/TED no mesmo projeto)","Operações",1,1,1,26.840841429019118,12.242515102728092,41.868070098093234,{"$f":"H35/12","v":1.0202095918940077},1,5.473382107682526,1.5598642914684244]
[31,"Equipe executora em outros estados (fora RJ e DF)","Operações",2.25,2.1150000000000002,2.25,60.391893215293017,25.892919442269918,94.203157720709783,2.1577432868558266,2.25,11.576203157748544,3.5096946558039548]
[32,"Negociação de garantia contratual","Iniciação",2,0,0,53.681682858038236,0,0,0,2,0,0]
[33,"Documentação suplementar para habilitação","Iniciação",1,0,0,26.840841429019118,0,0,0,1,0,0]
[34,"Modelos diferentes para apresentação de proposta","Iniciação",1,0,0,26.840841429019118,0,0,0,1,0,0]
[35,"Projeto de edital","Iniciação",3,0,0,80.522524287057351,0,0,0,3,0,0]
[49,"Projeto com edital Fiocruz (Programa)","Iniciação",2,0,0,53.681682858038236,0,0,{"$f":"H41/12","v":0},2,0,0]
[36,"Necessidade de integração com outras áreas da Fiotec","Iniciação",2,0,0,53.681682858038236,0,0,0,2,0,0]
[37,"Necessidade de participação direta na (re)negociação do projeto","Iniciação",3,0,0,80.522524287057351,0,0,0,3,0,0]
[38,"Necessidade de submissão e aprovação dos órgãos reguladores","Iniciação",2,0,0,53.681682858038236,0,0,0,2,0,0]
[39,"Várias instâncias de aprovação","Iniciação",3,0,0,80.522524287057351,0,0,0,3,0,0]
[40,"Parcela reembolso","Prestação de Contas",0,0,2,0,0,83.736140196186469,0,0,0,3.1197285829368488]
[41,"Prestação de Contas sem formulário definido","Prestação de Contas",0,0,1,0,0,41.868070098093234,0,0,0,1.5598642914684244]
[42,"Prestação de Contas diferenciada - Biomanguinhos","Prestação de Contas",0,0,2,0,0,83.736140196186469,0,0,0,3.1197285829368488]
[43,"Prestação de Contas com envio de documentação comprobatória","Prestação de Contas",0,0,3,0,0,125.60421029427971,{"$f":"H49/12","v":0},0,0,4.6795928744052731]
[51,"Prestação de contas Decreto 7.423/2010","Prestação de Contas",0,0,1,0,0,41.868070098093234,0,0,0,1.5598642914684244]
[52,"Contratação de celetista","Riscos",0,{"$f":"QTDRiscoCeletista","v":0},0,0,{"$f":"RiscoCeletista","v":0},0,0,{"$f":"D51*FatorIniciação","v":0},{"$f":"E51*FatorExecução","v":0},{"$f":"F51*FatorPrestaçãoDeContas","v":0}]
[53,"Contratação de bolsista","Riscos",0,{"$f":"QtdRiscoBolsista","v":0},0,0,{"$f":"RiscoBolsista","v":0},0,0,0,0,0]
[54,"Contratação de autônomo","Riscos",0,{"$f":"QtdRiscoAutônomo","v":0},0,0,{"$f":"RiscoAutônomo","v":0},0,null,0,0,0]
[]
[]
[null,null,"Total de Pontos:",{"$f":"SUM(D3:D53)","v":76.584000000000003},{"$f":"SUM(E3:E53)*FatorVigência","v":5.6419166666666651},{"$f":"SUM(F3:F53)","v":72.584000000000003}]
[null,null,"Vlr.Unit.Ponto:",{"$f":"B1*H1/D56","v":26.840841429019118},{"$f":"D1*H1/E56","v":146.91018123273713},{"$f":"F1*H1/F56","v":41.868070098093241}]
[null,null,"Fatores:",{"$f":"D57/MIN($D$57:$F$57)","v":1},{"$f":"E57/MIN($D$57:$F$57)","v":5.473382107682526},1.5598642914684244]

{"sheet":"RISCOS","index":7,"n_rows":5,"n_cols":6,"rows_kept":5,"cut":false,"hidden":true,"merged":[[4,0,4,3]]}
["Risco","% Valor ou Valor Unitário","Prazo","Valor calculado","Valor do risco","Quantidade"]
["Contratação de celetista",0.01,"2 anos",{"$f":"IF(ISERROR(SUMIF(Modalidade,\"Celetista\",ValorModalidade)),0,SUMIF(Modalidade,\"Celetista\",ValorModalidade))","v":0},{"$f":"D2*B2","v":0},{"$f":"SUMIFS(Quantidade_de_Profissionais,Modalidade,\"Celetista\")","v":0}]
["Contratação de bolsista",2.5000000000000001E-2,"2 anos",{"$f":"IF(ISERROR(SUMIF(Modalidade,\"Bolsista\",ValorModalidade)),0,SUMIF(Modalidade,\"Bolsista\",ValorModalidade))","v":0},{"$f":"D3*B3","v":0},{"$f":"SUMIFS(Quantidade_de_Profissionais,Modalidade,\"Bolsista\")","v":0}]
["Contratação de autônomo",2.5000000000000001E-3,"2 anos",{"$f":"IF(ISERROR(SUMIF(Modalidade,\"Autônomo\",ValorModalidade)),0,SUMIF(Modalidade,\"Autônomo\",ValorModalidade))","v":0},0,{"$f":"SUMIFS(Quantidade_de_Profissionais,Modalidade,\"Autônomo\")","v":0}]
["TOTAL DE PROVISIONAMENTO DE RISCO",null,null,null,{"$f":"SUM(E2:E4)","v":0}]

{"sheet":"OUTROS","index":8,"n_rows":6,"n_cols":4,"rows_kept":6,"cut":false,"hidden":true,"merged":[[5,0,5,1]]}
["Descrição","Tipo","Valor","Valor do lançamento"]
["Desconto de...","DESCONTO",0,{"$f":"C2*IF(B2=\"DESCONTO\",-1,1)","v":0}]
["Acréscimo de...","ACRÉSCIMO",0,{"$f":"C3*IF(B3=\"DESCONTO\",-1,1)","v":0}]
[null,null,null,0]
[]
["TOTAL DE OUTROS LANÇAMENTOS",null,null,{"$f":"SUM(D2:D5)","v":0}]